[Event "SWVG Arnold Classic Prestige All 2019"]
[Site "Sandton"]
[Date "2019.05.19"]
[Round "9.9"]
[White "Simpson, Michael M"]
[Black "Bhawoodien, Shabir Hussain"]
[Result "0-1"]
[ECO "C56"]
[WhiteElo "1995"]
[BlackElo "2020"]
[Annotator "NA RC"]
[PlyCount "46"]
[EventDate "2019.05.18"]
[EventType "swiss"]
[EventCountry "RSA"]
[SourceTitle "playchess.com"]
[Source "ChessBase"]
[SourceQuality "1"]
[TimeControl "1500+10"]

1. e4 {[%emt 0:00:00]} e5 {[%emt 0:00:00]} 2. Nf3 {[%emt 0:00:00]} Nc6 {[%emt 0:00:00]} 3. d4 {[%emt 0:00:00]} exd4 {[%emt 0:00:00]} 4. Bc4 {[%emt 0:00:00]} Nf6 {[%emt 0:00:31]} 5. e5 {[%emt 0:00:01]} d5 {[%emt 0:00:02]} 6. Bb5 {[%emt 0:00:02]} Ne4 {[%emt 0:00:04]} 7. Nxd4 {[%emt 0:00:02]} Bd7 {[%emt 0:00:02]} 8. Bxc6 {[%emt 0:00:02]} bxc6 {[%emt 0:00:01]} 9. O-O {[%emt 0:00:03]} Bc5 {[%emt 0:00:01]} 10. Be3 {[%emt 0:00:02]} Qe7 {[%emt 0:00:48]} 11. f3 {[%emt 0:00:03]} Nd6 {[%emt 0:00:42]} 12. Re1 {[%emt 0:03:50]} Nf5 {[%emt 0:00:32]} 13. Bf2 {[%emt 0:02:00]} Bxd4 {[%emt 0:02:48]} ({Better is} 13... Nxd4 $15 14. Bxd4 Rb8) 14. Bxd4 $11 {[%emt 0:00:03]} O-O {[%emt 0:00:45]} 15. Nc3 {[%emt 0:00:18]} Qg5 {[%emt 0:02:07]} 16. Bc5 {[%emt 0:01:05]} Rfe8 {[%emt 0:00:26]} 17. Ne4 {[%emt 0:00:35]} dxe4 {[%emt 0:02:31]} 18. fxe4 {[%emt 0:01:15]} Nh4 {[%emt 0:00:16]} 19. g3 {[%emt 0:03:10]} Rad8 {[%emt 0:01:43]} 20. Be3 {[%emt 0:00:44]} Qg6 {[%emt 0:01:37]} 21. Qc1 {[%emt 0:01:51]} Nf3+ {[%emt 0:00:04]} 22. Kf2 {[%emt 0:00:02]} Nxe1 {[%emt 0:00:08]} 23. Qxe1 {[%emt 0:00:03]} Qxe4 {[%emt 0:13:42]} 0-1

[Event "SWVG Arnold Classic Prestige All 2019"]
[Site "Sandton"]
[Date "2019.05.19"]
[Round "9.10"]
[White "Van Der Walt, Pierre E."]
[Black "Bucceri, Draven"]
[Result "1-0"]
[ECO "C12"]
[WhiteElo "1993"]
[BlackElo "1633"]
[Annotator "NA RC"]
[PlyCount "55"]
[EventDate "2019.05.18"]
[EventType "swiss"]
[EventCountry "RSA"]
[SourceTitle "playchess.com"]
[Source "ChessBase"]
[SourceQuality "1"]
[TimeControl "1500+10"]

1. e4 {[%emt 0:00:00]} e6 {[%emt 0:00:00]} 2. d4 {[%emt 0:00:00]} d5 {[%emt 0:00:00]} 3. Nc3 {[%emt 0:00:02]} Nf6 {[%emt 0:00:00]} 4. Bg5 {[%emt 0:00:02]} Bb4 {[%emt 0:00:00]} 5. e5 {[%emt 0:00:11]} h6 {[%emt 0:00:00]} 6. exf6 {[%emt 0:00:03]} hxg5 {[%emt 0:00:02]} 7. fxg7 {[%emt 0:00:02]} Rg8 {[%emt 0:00:12]} 8. Qh5 {[%emt 0:00:50]} Qf6 {[%emt 0:00:09]} 9. Nf3 {[%emt 0:01:59]} g4 {[%emt 0:01:06]} 10. Qxg4 {[%emt 0:00:37]} Rxg7 {[%emt 0:00:03]} 11. Qh4 {[%emt 0:02:25]} Qxh4 {[%emt 0:25:18]} 12. Nxh4 {[%emt 0:20:49]} Nc6 {[%emt 0:00:00]} 13. O-O-O {[%emt 0:00:00]} Bd7 {[%emt 0:00:00]} 14. Nf3 {[%emt 0:00:00]} O-O-O $16 {[%emt 0:00:00]} 15. g3 {[%emt 0:00:00]} Bxc3 {[%emt 0:00:00]} 16. bxc3 {[%emt 0:00:00]} f6 {[%emt 0:00:00]} 17. Bb5 {[%emt 0:00:00]} Be8 {[%emt 0:00:00]} 18. Rde1 {[%emt 0:00:00]} Bf7 {[%emt 0:00:00]} 19. Bxc6 {[%emt 0:00:00]} bxc6 {[%emt 0:00:00]} 20. Nh4 {[%emt 0:00:00]} Bg8 {[%emt 0:00:00]} 21. f4 {[%emt 0:00:00]} Kd7 {[%emt 0:00:00]} 22. f5 {[%emt 0:00:00]} Re8 {[%emt 0:00:00]} 23. Re2 {[%emt 0:00:00]} e5 {[%emt 0:00:00]} 24. dxe5 {[%emt 0:00:00]} Rxe5 {[%emt 0:00:00]} 25. Rhe1 {[%emt 0:00:00]} Kd6 {[%emt 0:00:00]} 26. Kd2 {[%emt 0:00:00]} Bh7 {[%emt 0:00:00]} 27. a3 {[%emt 0:00:00]} Bxf5 {[%emt 0:00:00]} 28. Rxe5 {[%emt 0:00:00]} 1-0

[Event "SWVG Arnold Classic Prestige All 2019"]
[Site "Sandton"]
[Date "2019.05.19"]
[Round "9.11"]
[White "Swartz, David"]
[Black "Steyn, Hans"]
[Result "0-1"]
[ECO "A02"]
[WhiteElo "1756"]
[BlackElo "1863"]
[Annotator "NA RC"]
[PlyCount "66"]
[EventDate "2019.05.18"]
[EventType "swiss"]
[EventCountry "RSA"]
[SourceTitle "playchess.com"]
[Source "ChessBase"]
[SourceQuality "1"]
[TimeControl "1500+10"]

1. f4 {[%emt 0:00:00]} Nf6 {[%emt 0:00:31]} 2. Nf3 {[%emt 0:00:01]} e6 {[%emt 0:00:48]} 3. b3 {[%emt 0:00:08]} c5 {[%emt 0:00:34]} 4. Bb2 {[%emt 0:00:33]} Be7 {[%emt 0:00:16]} 5. g3 {[%emt 0:00:06]} b6 {[%emt 0:00:24]} 6. Bg2 {[%emt 0:00:01]} Bb7 {[%emt 0:00:05]} 7. O-O {[%emt 0:00:10]} O-O {[%emt 0:00:10]} 8. d3 {[%emt 0:00:24]} Qc7 {[%emt 0:00:05]} 9. e4 {[%emt 0:00:09]} d6 {[%emt 0:00:05]} 10. Nbd2 {[%emt 0:00:06]} Nbd7 {[%emt 0:00:03]} 11. a4 {[%emt 0:00:02]} a6 {[%emt 0:00:30]} 12. c4 {[%emt 0:00:28]} Bc6 {[%emt 0:01:05]} 13. Qe2 {[%emt 0:00:10]} e5 {[%emt 0:02:13]} 14. fxe5 {[%emt 0:00:25]} dxe5 {[%emt 0:00:14]} 15. Nh4 {[%emt 0:00:07]} g6 {[%emt 0:00:17]} 16. Rf2 {[%emt 0:00:39]} Nh5 {[%emt 0:00:40]} 17. Raf1 {[%emt 0:00:17]} Bxh4 {[%emt 0:00:04]} 18. gxh4 {[%emt 0:00:01]} Nf4 {[%emt 0:00:12]} 19. Qe3 {[%emt 0:01:16]} Ne6 {[%emt 0:00:04]} 20. Nf3 {[%emt 0:00:34]} Nd4 {[%emt 0:00:02]} 21. Qh6 {[%emt 0:00:02]} Nxf3+ {[%emt 0:00:36]} 22. Rxf3 {[%emt 0:00:11]} f6 {[%emt 0:00:42]} 23. Bh3 {[%emt 0:00:34]} Qd6 {[%emt 0:00:10]} 24. Rg3 {[%emt 0:02:35]} Rf7 {[%emt 0:00:13]} 25. h5 {[%emt 0:02:11]} Nf8 {[%emt 0:19:07]} 26. Bf5 {[%emt 0:18:10]} Rg7 {[%emt 0:00:10]} 27. h4 {[%emt 0:00:10]} Raa7 {[%emt 0:00:10]} 28. Bg4 {[%emt 0:00:10]} Raf7 {[%emt 0:00:00]} 29. Kh2 {[%emt 0:00:00]} Bd7 {[%emt 0:00:00]} 30. Rfg1 {[%emt 0:00:00]} Bxg4 {[%emt 0:00:00]} 31. Rxg4 {[%emt 0:00:00]} Qxd3 {[%emt 0:00:00]} 32. R1g3 {[%emt 0:00:00]} Qd7 {[%emt 0:00:00]} 33. Rf3 {[%emt 0:00:00]} Qxg4 {[%emt 0:01:00]} 0-1

[Event "SWVG Arnold Classic Prestige All 2019"]
[Site "Sandton"]
[Date "2019.05.19"]
[Round "9.12"]
[White "Klevansky, Aron"]
[Black "Molepo, Maropeng Quintallio"]
[Result "0-1"]
[ECO "C77"]
[WhiteElo "1878"]
[BlackElo "1723"]
[Annotator "NA RC"]
[PlyCount "40"]
[EventDate "2019.05.18"]
[EventType "swiss"]
[EventCountry "RSA"]
[SourceTitle "playchess.com"]
[Source "ChessBase"]
[SourceQuality "1"]
[TimeControl "1500+10"]

1. e4 {[%emt 0:25:10]} e5 {[%emt 0:25:10]} 2. Nf3 {[%emt 0:00:10]} Nc6 {[%emt 0:00:10]} 3. Bb5 {[%emt 0:00:10]} a6 {[%emt 0:00:10]} 4. Ba4 {[%emt 0:00:10]} Nf6 {[%emt 0:00:10]} 5. Qe2 {[%emt 0:00:10]} b5 {[%emt 0:00:10]} 6. Bb3 {[%emt 0:00:10]} Be7 {[%emt 0:00:10]} 7. a4 {[%emt 0:00:10]} b4 {[%emt 0:00:10]} 8. d4 {[%emt 0:00:10]} d5 {[%emt 0:00:10]} 9. exd5 {[%emt 0:00:10]} Nxd4 {[%emt 0:00:10]} 10. Nxd4 {[%emt 0:00:10]} exd4 {[%emt 0:00:10]} 11. Qc4 {[%emt 0:00:10]} Bb7 {[%emt 0:00:10]} 12. d6 {[%emt 0:00:10]} Qxd6 {[%emt 0:00:10]} 13. Qxf7+ {[%emt 0:00:10]} Kd7 {[%emt 0:00:10]} 14. Nd2 {[%emt 0:00:10]} Qe5+ {[%emt 0:00:10]} 15. Kf1 {[%emt 0:00:10]} Raf8 {[%emt 0:00:10]} 16. f4 {[%emt 0:00:10]} Bxg2+ {[%emt 0:00:10]} 17. Kxg2 {[%emt 0:00:10]} Qe2+ {[%emt 0:00:10]} 18. Kg3 {[%emt 0:00:10]} Rxf7 {[%emt 0:00:10]} 19. Bxf7 {[%emt 0:00:10]} Rf8 {[%emt 0:00:10]} 20. Bc4 {[%emt 0:00:10]} Nh5+ {[%emt 0:00:10]} 0-1

[Event "SWVG Arnold Classic Prestige All 2019"]
[Site "Sandton"]
[Date "2019.05.19"]
[Round "10.3"]
[White "Erlank, Warrick"]
[Black "Makoto, Rodwell"]
[Result "*"]
[ECO "C54"]
[WhiteElo "1967"]
[BlackElo "2369"]
[Annotator "NA RC"]
[PlyCount "43"]
[EventDate "2019.05.18"]
[EventType "swiss"]
[EventCountry "RSA"]
[SourceTitle "playchess.com"]
[Source "ChessBase"]
[SourceQuality "1"]
[TimeControl "1500+10"]

1. e4 {[%emt 0:00:00]} e5 {[%emt 0:00:00]} 2. Nf3 {[%emt 0:00:00]} Nc6 {[%emt 0:00:00]} 3. d4 {[%emt 0:00:01]} exd4 {[%emt 0:00:00]} 4. Bc4 {[%emt 0:00:06]} Bc5 {[%emt 0:00:00]} 5. c3 {[%emt 0:00:26]} Nf6 {[%emt 0:00:00]} 6. e5 {[%emt 0:01:10]} d5 {[%emt 0:00:00]} 7. Bb5 {[%emt 0:01:21]} Ne4 {[%emt 0:00:00]} 8. cxd4 {[%emt 0:03:43]} Bb6 {[%emt 0:00:00]} 9. h3 {[%emt 0:00:43]} O-O {[%emt 0:00:00]} 10. O-O {[%emt 0:00:10]} f6 {[%emt 0:00:37]} 11. Nc3 {[%emt 0:00:26]} f5 {[%emt 0:01:04]} 12. Ba4 {[%emt 0:02:46]} Ne7 {[%emt 0:00:19]} 13. Bb3 {[%emt 0:01:13]} Kh8 {[%emt 0:01:16]} 14. Ng5 $11 {[%emt 0:01:31]} c6 {[%emt 0:03:55]} 15. Ncxe4 {[%emt 0:02:44]} fxe4 {[%emt 0:00:01]} 16. Qh5 {[%emt 0:00:29]} Bf5 {[%emt 0:00:02]} 17. Nf7+ {[%emt 0:00:13]} Rxf7 {[%emt 0:00:01]} 18. Qxf7 {[%emt 0:00:01]} Bg6 {[%emt 0:00:01]} 19. Qe6 {[%emt 0:01:22]} Nf5 {[%emt 0:00:14]} 20. Be3 {[%emt 0:00:33]} Qc7 {[%emt 0:20:50]} 21. g4 {[%emt 0:09:32]} Re8 {[%emt 0:00:10]} 22. gxf5 {[%emt 0:00:10]} *

[Event "SWVG Arnold Classic Prestige All 2019"]
[Site "Sandton"]
[Date "2019.05.19"]
[Round "10.6"]
[White "Oatlhotse, Providence"]
[Black "Van Der Walt, Pierre E."]
[Result "*"]
[ECO "B14"]
[WhiteElo "2289"]
[BlackElo "1993"]
[Annotator "NA RC"]
[PlyCount "143"]
[EventDate "2019.05.18"]
[EventType "swiss"]
[EventCountry "RSA"]
[SourceTitle "playchess.com"]
[Source "ChessBase"]
[SourceQuality "1"]
[TimeControl "1500+10"]

1. e4 {[%emt 0:00:45]} c6 {[%emt 0:00:00]} 2. d4 {[%emt 0:00:02]} d5 {[%emt 0:00:00]} 3. exd5 {[%emt 0:00:01]} cxd5 {[%emt 0:00:00]} 4. c4 {[%emt 0:00:01]} Nf6 {[%emt 0:25:40]} 5. Nc3 {[%emt 0:25:01]} g6 {[%emt 0:00:00]} 6. cxd5 {[%emt 0:00:00]} Bg7 {[%emt 0:00:00]} 7. Qb3 {[%emt 0:00:00]} O-O {[%emt 0:00:00]} 8. Be2 {[%emt 0:00:00]} Nbd7 {[%emt 0:00:00]} 9. Bf3 {[%emt 0:00:00]} Nb6 {[%emt 0:00:00]} 10. Nge2 {[%emt 0:00:00]} Bf5 {[%emt 0:00:00]} 11. O-O {[%emt 0:00:00]} Bd3 {[%emt 0:00:00]} 12. d6 {[%emt 0:00:00]} Qxd6 {[%emt 0:00:00]} 13. Bxb7 {[%emt 0:00:00]} Rad8 {[%emt 0:00:00]} 14. Bf4 {[%emt 0:00:00]} Qd7 {[%emt 0:00:00]} 15. Bf3 {[%emt 0:00:00]} Qf5 {[%emt 0:00:00]} 16. Be5 {[%emt 0:00:00]} Nc4 {[%emt 0:00:00]} 17. Ng3 {[%emt 0:00:00]} Qg5 {[%emt 0:00:00]} 18. Bxf6 {[%emt 0:00:00]} Qxf6 {[%emt 0:00:00]} 19. Nd5 {[%emt 0:00:00]} Rxd5 {[%emt 0:00:00]} 20. Bxd5 {[%emt 0:00:00]} Bxf1 {[%emt 0:00:00]} 21. Nxf1 {[%emt 0:00:00]} Nb6 {[%emt 0:00:00]} 22. Rd1 {[%emt 0:00:00]} Rd8 {[%emt 0:00:00]} 23. Bc4 {[%emt 0:00:00]} e6 {[%emt 0:00:00]} 24. Ne3 {[%emt 0:00:00]} Rxd4 {[%emt 0:00:00]} 25. Bf1 {[%emt 0:00:00]} Rxd1 {[%emt 0:00:00]} 26. Nxd1 {[%emt 0:00:00]} Qd4 {[%emt 0:00:00]} 27. Nc3 {[%emt 0:00:00]} Qd2 {[%emt 0:00:00]} 28. Nd1 {[%emt 0:00:00]} Nd5 {[%emt 0:00:00]} 29. Qd3 {[%emt 0:00:00]} Qc1 {[%emt 0:00:00]} 30. b3 {[%emt 0:00:00]} Bf8 {[%emt 0:00:00]} 31. g3 {[%emt 0:00:00]} a5 {[%emt 0:00:00]} 32. h4 {[%emt 0:00:00]} Nb4 {[%emt 0:00:03]} 33. Qe2 {[%emt 0:00:00]} Qa1 {[%emt 0:00:03]} 34. a4 {[%emt 0:00:00]} Qb1 {[%emt 0:00:06]} 35. Qf3 {[%emt 0:00:00]} e5 {[%emt 0:00:34]} 36. Bc4 {[%emt 0:00:00]} Qf5 {[%emt 0:00:47]} 37. Qxf5 {[%emt 0:00:00]} gxf5 {[%emt 0:00:00]} 38. Ne3 {[%emt 0:00:00]} f4 {[%emt 0:00:11]} 39. gxf4 {[%emt 0:00:00]} exf4 {[%emt 0:00:00]} 40. Nf5 {[%emt 0:00:00]} Nc6 {[%emt 0:00:18]} 41. Kg2 {[%emt 0:00:00]} Ne5 {[%emt 0:00:13]} 42. f3 {[%emt 0:00:00]} Nxc4 {[%emt 0:01:29]} 43. bxc4 {[%emt 0:00:00]} f6 {[%emt 0:00:01]} 44. Kf1 {[%emt 0:00:00]} Kf7 {[%emt 0:00:04]} 45. Nd4 {[%emt 0:00:00]} Bc5 {[%emt 0:00:20]} 46. Nb3 {[%emt 0:00:00]} Bb6 {[%emt 0:00:51]} 47. Ke2 {[%emt 0:00:00]} Kg6 {[%emt 0:00:06]} 48. c5 {[%emt 0:00:00]} Bc7 {[%emt 0:00:45]} 49. Kd3 {[%emt 0:00:00]} Kh5 {[%emt 0:00:01]} 50. Ke4 {[%emt 0:00:00]} Kxh4 {[%emt 0:00:04]} 51. Nd4 {[%emt 0:00:02]} Be5 {[%emt 0:00:34]} 52. Ne6 {[%emt 0:00:47]} Kg3 {[%emt 0:00:05]} 53. Ng7 {[%emt 0:02:56]} Kf2 {[%emt 0:00:49]} 54. c6 {[%emt 0:00:10]} h6 {[%emt 0:00:15]} 55. Nh5 {[%emt 0:00:24]} Bc7 {[%emt 0:00:37]} 56. Nxf6 {[%emt 0:00:05]} Bd8 {[%emt 0:00:10]} 57. Nh5 {[%emt 0:00:05]} Ke2 {[%emt 0:00:10]} 58. Nxf4+ {[%emt 0:00:09]} Kd2 {[%emt 0:00:01]} 59. Ne6 {[%emt 0:01:01]} Bb6 {[%emt 0:00:02]} 60. c7 {[%emt 0:00:03]} Bxc7 {[%emt 0:00:01]} 61. Nxc7 {[%emt 0:00:01]} h5 {[%emt 0:00:02]} 62. Kf4 {[%emt 0:01:05]} h4 {[%emt 0:00:02]} 63. Kg4 {[%emt 0:00:05]} Ke3 {[%emt 0:00:05]} 64. Nd5+ {[%emt 0:00:11]} Kd4 {[%emt 0:00:01]} 65. Kxh4 {[%emt 0:00:02]} Kxd5 {[%emt 0:00:04]} 66. Kg5 {[%emt 0:00:02]} Ke6 {[%emt 0:00:01]} 67. Kg6 {[%emt 0:00:01]} Ke5 {[%emt 0:00:01]} 68. Kg5 {[%emt 0:00:02]} Ke6 {[%emt 0:00:02]} 69. f4 {[%emt 0:00:00]} Ke7 {[%emt 0:00:02]} 70. Kg6 {[%emt 0:00:02]} Ke6 {[%emt 0:00:02]} 71. f5+ {[%emt 0:00:01]} Ke7 {[%emt 0:00:01]} 72. Kg7 {[%emt 0:00:01]} *

[Event "SWVG Arnold Classic Prestige All 2019"]
[Site "Sandton"]
[Date "2019.05.19"]
[Round "10.7"]
[White "Bhawoodien, Shabir Hussain"]
[Black "Sithole, Collins"]
[Result "1-0"]
[ECO "E70"]
[WhiteElo "2020"]
[BlackElo "1861"]
[Annotator "NA RC"]
[PlyCount "135"]
[EventDate "2019.05.18"]
[EventType "swiss"]
[EventCountry "RSA"]
[SourceTitle "playchess.com"]
[Source "ChessBase"]
[SourceQuality "1"]
[TimeControl "1500+10"]

1. e4 {[%emt 0:00:00]} g6 {[%emt 0:00:20]} 2. d4 {[%emt 0:00:00]} Bg7 {[%emt 0:00:02]} 3. c4 {[%emt 0:00:00]} c5 {[%emt 0:00:07]} 4. d5 {[%emt 0:00:00]} d6 {[%emt 0:00:07]} 5. Nc3 {[%emt 0:00:02]} Nf6 {[%emt 0:00:16]} 6. Bg5 {[%emt 0:00:36]} h6 {[%emt 0:00:07]} 7. Be3 {[%emt 0:00:02] E70: King's Indian: Miscellaneous lines with 4 e4, including 5 Nge2 and 5 Bd3 0-0 6 Nge2} Nbd7 {[%emt 0:00:07]} (7... Ng4 8. Bd2 Bd4 9. Nh3 e5 10. dxe6 Bxe6 11. Be2 Qd7 12. O-O Ne5 13. Nf4 Bxc4 14. Nfd5 Bxd5 15. Nxd5 {0-1 (27) Tregubov,P (2585)-Banikas,H (2568) Doha 2016}) 8. f3 {[%emt 0:00:12]} Qa5 {[%emt 0:00:39]} 9. Nge2 $146 {[%emt 0:00:41]} ({Predecessor:} 9. Nh3 Nb6 10. Nf2 Bd7 11. Bd2 Na4 12. Nb5 Nxb2 13. Bxa5 Nxd1 14. Nxd1 Bxb5 15. cxb5 Nxe4 {1-0 (46) Torres,E (1939)-Perondi,M (1524) Florianopolis 2017}) 9... a6 {[%emt 0:00:11]} 10. Nc1 {[%emt 0:00:57]} Rb8 {[%emt 0:01:09]} 11. Nb3 {[%emt 0:00:19]} Qb4 {[%emt 0:00:17]} 12. a3 {[%emt 0:00:59]} Qb6 {[%emt 0:00:04]} 13. Be2 {[%emt 0:00:34]} Ne5 {[%emt 0:00:09]} 14. h3 {[%emt 0:00:43]} (14. f4 $16 Ned7 15. Rc1) 14... g5 {[%emt 0:00:11]} 15. Kf2 {[%emt 0:03:00]} Bd7 {[%emt 0:00:12]} 16. g3 {[%emt 0:00:19]} Ng6 {[%emt 0:00:35]} 17. Rb1 {[%emt 0:00:41]} Qd8 {[%emt 0:00:14]} 18. Nd2 {[%emt 0:02:16]} Nh5 {[%emt 0:00:18]} 19. Kg2 {[%emt 0:02:35]} b5 {[%emt 0:00:27]} 20. Qc2 {[%emt 0:00:28]} Rg8 {[%emt 0:01:13]} 21. Bf2 {[%emt 0:02:19]} Qc8 {[%emt 0:00:30]} 22. g4 {[%emt 0:03:42]} Nhf4+ {[%emt 0:01:11]} 23. Kf1 {[%emt 0:00:15]} b4 {[%emt 0:01:47]} 24. axb4 {[%emt 0:00:09]} cxb4 {[%emt 0:00:36]} 25. Nd1 {[%emt 0:00:22]} Nxe2 {[%emt 0:00:05]} 26. Kxe2 {[%emt 0:00:02]} Nf4+ {[%emt 0:00:04]} 27. Kf1 {[%emt 0:00:15]} a5 {[%emt 0:00:06]} 28. b3 {[%emt 0:00:08]} Qa6 {[%emt 0:00:09]} 29. Nb2 {[%emt 0:01:43]} e6 {[%emt 0:00:14]} 30. Nd3 {[%emt 0:00:23]} Ng6 {[%emt 0:01:15]} 31. Kg2 {[%emt 0:00:19]} Bc3 {[%emt 0:00:03]} 32. dxe6 {[%emt 0:01:54]} fxe6 {[%emt 0:00:03]} 33. Bg3 {[%emt 0:00:06]} Ke7 {[%emt 0:00:32] [#]} 34. Rhe1 $2 {[%emt 0:00:48]} (34. e5 $1 $16 {[%cal Re5d6]} d5 35. Nc5) 34... e5 {[%emt 0:00:37]} 35. Re2 {[%emt 0:00:29]} Rgf8 {[%emt 0:00:04]} 36. Nf1 {[%emt 0:00:04]} Nf4+ {[%emt 0:01:04]} 37. Nxf4 {[%emt 0:00:12]} gxf4 {[%emt 0:00:05]} 38. Be1 {[%emt 0:00:05]} Bd4 {[%emt 0:00:09]} 39. Bf2 {[%emt 0:00:28]} Bc3 {[%emt 0:00:04]} 40. Rd1 {[%emt 0:00:53]} h5 {[%emt 0:00:05]} 41. Qd3 {[%emt 0:00:13]} hxg4 {[%emt 0:00:20]} 42. Bh4+ {[%emt 0:00:10]} Ke8 {[%emt 0:00:22]} 43. hxg4 {[%emt 0:00:01]} Rb6 {[%emt 0:01:37]} 44. Nd2 {[%emt 0:00:47]} a4 {[%emt 0:00:06]} 45. Nb1 {[%emt 0:00:16]} Bd4 {[%emt 0:00:19]} 46. Bf2 {[%emt 0:00:02]} Bxf2 {[%emt 0:00:42]} 47. Rxf2 {[%emt 0:00:01]} a3 {[%emt 0:00:06]} 48. Qd2 {[%emt 0:00:38]} Be6 {[%emt 0:00:15]} 49. c5 {[%emt 0:00:35]} a2 {[%emt 0:00:52]} 50. cxb6 {[%emt 0:00:32]} a1=Q $18 {[%emt 0:04:14]} 51. Qxd6 {[%emt 0:00:01]} Qc8 {[%emt 0:01:38]} 52. b7 {[%emt 0:00:25]} Qxb7 {[%emt 0:00:29]} 53. Qxe6+ {[%emt 0:00:10]} Qe7 {[%emt 0:00:00]} 54. Qc6+ {[%emt 0:00:04]} Kf7 {[%emt 0:00:19]} 55. Rd7 {[%emt 0:00:01]} Qd4 {[%emt 0:01:40]} 56. Rxe7+ {[%emt 0:00:09]} Kxe7 {[%emt 0:00:01]} 57. Rd2 {[%emt 0:00:05]} Qa7 {[%emt 0:01:54]} 58. Qd6+ {[%emt 0:00:02]} Kf7 {[%emt 0:00:15]} 59. Qxe5 {[%emt 0:00:05]} Kg8 {[%emt 0:00:33]} 60. Qg5+ {[%emt 0:00:05]} Kh8 {[%emt 0:00:36]} 61. Kf1 {[%emt 0:00:31]} Qh7 {[%emt 0:01:02]} 62. Qh5 {[%emt 0:00:13]} Qxh5 {[%emt 0:00:12]} 63. gxh5 {[%emt 0:00:02]} Rc8 {[%emt 0:00:00]} 64. Ke2 {[%emt 0:00:19]} Rc1 {[%emt 0:00:01]} 65. Rb2 {[%emt 0:00:01]} Rh1 {[%emt 0:00:01]} 66. Nd2 {[%emt 0:00:03]} Rxh5 {[%emt 0:00:26]} 67. Rc2 {[%emt 0:00:01]} Rh2+ {[%emt 0:00:01]} 68. Kd3 {[%emt 0:00:01]} 1-0

[Event "SWVG Arnold Classic Prestige All 2019"]
[Site "Sandton"]
[Date "2019.05.19"]
[Round "10.8"]
[White "Steyn, Hans"]
[Black "Smit, Devon"]
[Result "1/2-1/2"]
[ECO "A16"]
[WhiteElo "1863"]
[BlackElo "1743"]
[Annotator "NA RC"]
[PlyCount "82"]
[EventDate "2019.05.18"]
[EventType "swiss"]
[EventCountry "RSA"]
[SourceTitle "playchess.com"]
[Source "ChessBase"]
[SourceQuality "1"]
[TimeControl "1500+10"]

1. c4 {[%emt 0:00:00]} Nf6 {[%emt 0:00:00]} 2. Nc3 {[%emt 0:00:08]} g6 {[%emt 0:00:06]} 3. g3 {[%emt 0:00:06]} Bg7 {[%emt 0:00:03]} 4. Bg2 {[%emt 0:00:03]} d6 {[%emt 0:00:03]} 5. e4 {[%emt 0:00:25]} Nbd7 {[%emt 0:00:12]} 6. Nge2 {[%emt 0:00:04]} O-O {[%emt 0:00:27]} 7. O-O {[%emt 0:00:03]} c5 {[%emt 0:00:24]} 8. d3 {[%emt 0:00:26]} Rb8 {[%emt 0:00:25]} 9. h3 {[%emt 0:00:20]} a6 {[%emt 0:00:16]} 10. a4 {[%emt 0:00:02]} Ne5 {[%emt 0:00:02]} 11. Be3 {[%emt 0:00:51]} Nc6 {[%emt 0:00:09]} 12. Qd2 {[%emt 0:00:03]} Nb4 {[%emt 0:00:19]} 13. Kh2 {[%emt 0:00:16]} Bd7 {[%emt 0:00:12]} 14. a5 {[%emt 0:00:37]} b5 {[%emt 0:00:21]} 15. axb6 {[%emt 0:00:21]} Qxb6 {[%emt 0:00:04]} 16. d4 {[%emt 0:01:34]} cxd4 {[%emt 0:00:34]} 17. Nxd4 {[%emt 0:00:06]} Qc7 {[%emt 0:00:16]} 18. Nd5 {[%emt 0:02:31]} Nbxd5 {[%emt 0:01:07]} 19. cxd5 {[%emt 0:00:04]} Bb5 {[%emt 0:00:18]} 20. Rfc1 {[%emt 0:00:10]} Qd7 {[%emt 0:00:05]} 21. Nc6 {[%emt 0:00:04]} Rbc8 {[%emt 0:00:12]} 22. Nd4 {[%emt 0:00:37]} Rb8 {[%emt 0:00:26]} 23. Nxb5 {[%emt 0:00:18]} Qxb5 {[%emt 0:00:18]} 24. Rc7 {[%emt 0:02:50]} Rfe8 {[%emt 0:01:08]} 25. Ra5 {[%emt 0:00:18]} Qxb2 {[%emt 0:00:14]} 26. Qxb2 {[%emt 0:00:02]} Rxb2 {[%emt 0:00:02]} 27. Rxa6 {[%emt 0:00:03]} Rb4 {[%emt 0:00:40]} 28. f3 {[%emt 0:01:37]} h5 {[%emt 0:00:33]} 29. Raa7 {[%emt 0:00:09]} Kf8 {[%emt 0:00:05]} 30. Bf4 {[%emt 0:00:08]} Rb6 {[%emt 0:00:12]} 31. h4 {[%emt 0:01:01]} Ng8 {[%emt 0:00:13]} 32. Kh3 {[%emt 0:00:36]} Bh6 {[%emt 0:00:03]} 33. Bf1 {[%emt 0:01:03]} Bxf4 {[%emt 0:00:07]} 34. gxf4 {[%emt 0:00:03]} Nf6 {[%emt 0:00:24]} 35. Kg3 {[%emt 0:00:10]} Rb3 {[%emt 0:00:14]} 36. Kf2 {[%emt 0:00:28]} Rb2+ {[%emt 0:00:05]} 37. Be2 {[%emt 0:00:50]} Ng8 {[%emt 0:00:15]} 38. e5 {[%emt 0:01:12]} Rb6 {[%emt 0:00:35]} 39. Ke3 {[%emt 0:00:19]} Reb8 {[%emt 0:00:07]} 40. Kd4 {[%emt 0:11:42]} Rb4+ {[%emt 0:20:24]} 41. Bc4 {[%emt 0:00:10]} R4b5 {[%emt 0:00:10]} 1/2-1/2

[Event "SWVG Arnold Classic Prestige All 2019"]
[Site "Sandton"]
[Date "2019.05.19"]
[Round "10.9"]
[White "Molepo, Maropeng Quintallio"]
[Black "Mwale, Joseph"]
[Result "1/2-1/2"]
[ECO "C47"]
[WhiteElo "1723"]
[BlackElo "2274"]
[Annotator "NA RC"]
[PlyCount "27"]
[EventDate "2019.05.18"]
[EventType "swiss"]
[EventCountry "RSA"]
[SourceTitle "playchess.com"]
[Source "ChessBase"]
[SourceQuality "1"]
[TimeControl "1500+10"]

1. e4 {[%emt 0:00:01]} e5 {[%emt 0:00:00]} 2. Nf3 {[%emt 0:00:50]} Nc6 {[%emt 0:00:00]} 3. Nc3 {[%emt 0:00:04]} Nf6 {[%emt 0:00:00]} 4. g3 {[%emt 0:00:02]} d5 {[%emt 0:00:00]} 5. exd5 {[%emt 0:00:06]} Nxd5 {[%emt 0:00:00]} 6. Bg2 {[%emt 0:00:02]} Nxc3 {[%emt 0:00:30]} 7. bxc3 {[%emt 0:00:03]} Bd6 {[%emt 0:00:05]} 8. O-O {[%emt 0:00:04]} O-O {[%emt 0:00:12]} 9. d4 {[%emt 0:01:07]} exd4 {[%emt 0:00:17]} 10. cxd4 {[%emt 0:00:02]} Bg4 {[%emt 0:00:01]} 11. c3 {[%emt 0:00:48]} Qd7 {[%emt 0:00:11]} 12. Re1 {[%emt 0:00:13]} Rae8 {[%emt 0:00:05]} 13. Be3 {[%emt 0:00:41]} f5 {[%emt 0:05:50]} 14. h3 {[%emt 0:06:37]} 1/2-1/2